bitfinex/quotes_SOLUSD_20250803
["timestamp","ask_amount","ask_price","bid_price","bid_amount"]
[1754180802508,49.22950251,157.89,157.82,0.68]
[1754180802679,8.84228585,157.84,157.78,0.06]
[1754180802879,8.84228585,157.84,157.79,9.52228585]
[1754180803100,8.84228585,157.85,157.8,9.52228585]
[1754180803311,8.84228585,157.85,157.8,8.84228585]
[1754180803605,8.84228585,157.85,157.81,0.68]
[1754180803920,9.18178836,157.84,157.78,8.90228585]
[1754180804099,8.84228585,157.82,157.78,0.74]
[1754180804487,8.84228585,157.82,157.78,0.06]
[1754180804719,0.33950251,157.81,157.78,0.74]
[1754180804909,9.18178836,157.81,157.78,0.74]
[1754180805414,9.18178836,157.81,157.78,0.06]
[1754180806617,8.84228585,157.79,157.78,0.06]
[1754180807317,9.53228585,157.79,157.78,0.06]
[1754180807825,8.84228585,157.79,157.78,0.06]
[1754180807997,0.69,157.79,157.78,0.06]
[1754180808178,9.53228585,157.79,157.78,0.06]
[1754180809009,8.84228585,157.79,157.78,0.06]
[1754180810298,9.53228585,157.79,157.78,0.06]
[1754180810498,26.31696982,157.79,157.78,0.06]
[1754180811632,52.31696982,157.79,157.78,0.06]
[1754180812152,16.78468397,157.76,157.7,0.68]
[1754180812444,8.84228585,157.72,157.7,0.68]
[1754180812609,8.84228585,157.71,157.68,0.68]
[1754180812915,0.33950251,157.75,157.67,0.68]
[1754180812916,8.84228585,157.7,157.67,0.68]
[1754180813436,8.84228585,157.7,157.65,8.84228585]
[1754180813621,8.84228585,157.7,157.68,0.68]
[1754180814123,27.02950251,157.73,157.68,0.68]
[1754180814348,8.84228585,157.7,157.68,0.68]
[1754180814536,9.18178836,157.69,157.65,0.68]
[1754180814715,8.84228585,157.67,157.61,5.86440616]
[1754180814919,8.84228585,157.67,157.63,0.68]
[1754180815307,8.84228585,157.67,157.64,0.68]
[1754180815503,9.18178836,157.66,157.64,0.68]
[1754180815937,9.18178836,157.66,157.62,0.68]
[1754180816232,9.18178836,157.66,157.63,0.68]
[1754180816618,9.18178836,157.66,157.61,14.70669201]
[1754180816619,8.84228585,157.64,157.61,6.54440616]
[1754180816825,8.84228585,157.63,157.61,6.54440616]
[1754180817010,8.84228585,157.63,157.61,5.86440616]
[1754180817416,1.02950251,157.66,157.61,5.86440616]
[1754180817739,8.84228585,157.64,157.61,6.54440616]
[1754180818617,9.18178836,157.63,157.61,6.54440616]
[1754180818821,8.84228585,157.63,157.61,6.54440616]
[1754180819032,0.69,157.66,157.61,6.54440616]
[1754180819234,8.84228585,157.63,157.61,6.54440616]
[1754180819543,8.84228585,157.64,157.61,6.54440616]
[1754180820145,0.69,157.66,157.61,6.54440616]
[1754180820324,8.84228585,157.68,157.63,8.84228585]
[1754180820530,0.69,157.71,157.64,0.68]
[1754180820531,9.18178836,157.67,157.64,0.68]
[1754180820732,0.33950251,157.67,157.64,0.68]
[1754180820941,8.84228585,157.67,157.65,0.68]
[1754180821137,0.33950251,157.66,157.63,0.69]
[1754180821337,8.84228585,157.65,157.61,6.55440616]
[1754180821648,0.33950251,157.64,157.61,6.55440616]
[1754180821855,0.33950251,157.64,157.62,0.69]
[1754180822235,0.33950251,157.64,157.63,0.69]
[1754180822451,9.18178836,157.66,157.63,0.69]
[1754180822616,8.84228585,157.65,157.63,0.69]
[1754180822944,0.33950251,157.66,157.61,5.86440616]
[1754180822945,0.33950251,157.64,157.61,6.55440616]
[1754180823116,9.18178836,157.65,157.62,0.69]
[1754180823517,8.84228585,157.64,157.61,5.86440616]
[1754180823937,8.84228585,157.64,157.61,6.55440616]
[1754180824219,8.84228585,157.62,157.61,5.86440616]
[1754180824430,9.56228585,157.62,157.61,5.86440616]
[1754180825325,8.84228585,157.62,157.61,5.86440616]
[1754180825522,9.56228585,157.62,157.61,5.86440616]
[1754180825721,26.34696982,157.62,157.61,5.86440616]
[1754180825942,26.68647233,157.62,157.61,5.86440616]
[1754180827249,27.05950251,157.62,157.61,5.86440616]
[1754180827426,52.68647233,157.62,157.61,5.86440616]
[1754180827844,52.68647233,157.62,157.61,5.92440616]
[1754180829458,43.12418648,157.62,157.61,5.92440616]
[1754180829758,100.68647233,157.62,157.61,5.92440616]
[1754180830046,52.68647233,157.62,157.61,5.92440616]
[1754180830429,100.68647233,157.62,157.61,5.92440616]
[1754180831828,100.68647233,157.62,157.59,1.2954444]
[1754180832154,42.78468397,157.57,157.5,0.69]
[1754180832361,48.41950251,157.56,157.5,0.69]
[1754180832525,48.41950251,157.56,157.5,9.53228585]
[1754180832847,57.26178836,157.56,157.51,0.69]
[1754180833029,48.41950251,157.56,157.52,8.84228585]
[1754180833233,0.33950251,157.56,157.53,0.69]
[1754180833441,9.18178836,157.56,157.54,0.69]
[1754180833622,8.84228585,157.55,157.52,0.69]
[1754180833820,8.84228585,157.53,157.42,0.69]
[1754180834025,8.84228585,157.5,157.45,8.84228585]
[1754180834262,8.84228585,157.51,157.5,0.06]
[1754180834637,8.84228585,157.51,157.5,0.75]
[1754180835152,8.84228585,157.51,157.5,0.06]
[1754180835354,0.33950251,157.52,157.5,0.75]
[1754180835534,0.33950251,157.52,157.51,0.69]
[1754180836252,9.18178836,157.52,157.51,0.69]
[1754180836433,9.90178836,157.52,157.5,0.06]
[1754180836636,8.84228585,157.51,157.5,0.06]
[1754180837654,26.72,157.54,157.5,0.06]
[1754180837655,43.12418648,157.53,157.5,0.06]
[1754180837869,0.33950251,157.53,157.5,0.06]
[1754180838030,8.84228585,157.52,157.5,0.75]
[1754180838234,9.18178836,157.51,157.5,0.06]
[1754180839051,0.33950251,157.53,157.5,0.75]
[1754180839376,0.33950251,157.56,157.5,0.75]
[1754180839536,0.33950251,157.54,157.5,9.59228585]
[1754180839740,8.84228585,157.56,157.51,9.53228585]
[1754180840070,9.18178836,157.55,157.52,0.69]
[1754180840458,0.33950251,157.55,157.53,0.69]
[1754180840672,8.84228585,157.56,157.54,0.69]
[1754180840878,0.33950251,157.55,157.54,0.69]
[1754180842040,0.33950251,157.57,157.54,0.69]
[1754180842394,0.72,157.66,157.56,8.84228585]
[1754180842597,0.33950251,157.64,157.6,8.84228585]
[1754180843088,0.33950251,157.65,157.61,0.69]
[1754180843284,0.33950251,157.65,157.62,8.84228585]
[1754180843572,0.33950251,157.66,157.63,0.69]
[1754180843756,0.33950251,157.66,157.62,8.84228585]
[1754180844075,8.84228585,157.64,157.6,0.69]
[1754180844246,0.33950251,157.66,157.61,0.69]
[1754180844572,0.33950251,157.66,157.62,9.53228585]
[1754180844872,0.33950251,157.66,157.63,0.69]
[1754180845077,0.33950251,157.66,157.55,26.0]
[1754180845078,8.84228585,157.65,157.55,26.0]
[1754180845281,8.84228585,157.65,157.61,0.69]
[1754180845483,8.84228585,157.65,157.62,0.69]
[1754180845695,9.18178836,157.64,157.58,8.84228585]
[1754180845852,8.84228585,157.62,157.58,0.69]
[1754180846051,8.84228585,157.63,157.59,0.69]
[1754180846380,8.84228585,157.63,157.6,0.69]
[1754180846587,9.18178836,157.64,157.61,0.69]
[1754180846897,8.84228585,157.63,157.61,0.69]
[1754180847053,8.84228585,157.63,157.56,0.69]
[1754180847054,9.18178836,157.62,157.56,0.69]
[1754180847252,0.33950251,157.62,157.58,8.84228585]
[1754180847465,8.84228585,157.63,157.59,0.69]
[1754180847775,9.18178836,157.62,157.59,0.69]
[1754180848374,8.84228585,157.61,157.57,0.69]
[1754180848585,0.33950251,157.64,157.58,0.69]
[1754180848793,8.84228585,157.61,157.58,0.69]
[1754180848980,0.33950251,157.64,157.59,0.69]
[1754180849394,8.84228585,157.61,157.59,0.69]
[1754180849789,8.84228585,157.61,157.56,8.84228585]
[1754180850105,8.84228585,157.59,157.56,0.69]
[1754180850276,0.33950251,157.58,157.56,0.69]
[1754180850590,8.84228585,157.59,157.54,8.84228585]
[1754180850779,8.84228585,157.59,157.55,0.69]
[1754180850971,0.33950251,157.58,157.54,8.84228585]
[1754180851172,0.33950251,157.58,157.55,0.67]
[1754180851372,0.33950251,157.6,157.56,0.67]
[1754180851609,9.18178836,157.6,157.57,0.67]
[1754180851975,8.84228585,157.58,157.5,8.902286]
[1754180852278,8.84228585,157.56,157.52,0.67]
[1754180852488,0.33950251,157.55,157.52,0.67]
[1754180853383,0.33950251,157.58,157.53,0.67]
[1754180853713,0.33950251,157.58,157.5,0.06]
[1754180853714,0.33950251,157.58,157.54,9.51228585]
[1754180853916,8.84228585,157.59,157.55,0.67]
[1754180854074,9.18178836,157.61,157.56,8.84228585]
[1754180854424,0.33950251,157.61,157.58,8.84228585]
[1754180854577,0.03,157.62,157.6,8.84228585]
[1754180854975,0.03,157.62,157.61,0.67]
[1754180855200,0.03,157.62,157.61,9.51228585]
[1754180856308,0.03,157.62,157.61,0.67]
[1754180856618,9.58228585,157.62,157.55,0.67]
[1754180856784,8.84228585,157.58,157.53,0.67]
[1754180856983,8.84228585,157.58,157.54,0.67]
[1754180856984,0.33950251,157.57,157.54,0.67]
[1754180857701,8.84228585,157.56,157.51,0.67]
[1754180857912,0.33950251,157.55,157.52,0.67]
[1754180858397,0.33950251,157.55,157.5,8.90228585]
[1754180858598,0.33950251,157.55,157.51,9.51228585]
[1754180858784,8.84228585,157.56,157.51,9.51228585]
[1754180858986,8.84228585,157.56,157.52,0.67]
[1754180859220,0.33950251,157.55,157.51,8.84228585]
[1754180859392,8.84228585,157.56,157.53,0.67]
[1754180859584,0.33950251,157.55,157.53,0.67]
[1754180859784,0.33950251,157.59,157.54,8.84228585]
[1754180859984,0.33950251,157.58,157.55,0.67]
[1754180860797,8.84228585,157.59,157.55,0.67]
[1754180861002,9.18178836,157.58,157.55,0.67]
[1754180861208,0.33950251,157.58,157.55,0.67]
[1754180861941,9.18178836,157.58,157.52,0.67]
[1754180862215,8.84228585,157.57,157.52,0.67]
[1754180862395,0.33950251,157.56,157.52,9.51228585]
[1754180862586,26.71,157.59,157.52,0.67]
[1754180862783,26.71,157.59,157.51,8.84228585]
[1754180862784,1.04950251,157.58,157.51,8.84228585]
[1754180863217,8.84228585,157.55,157.5,0.73]
[1754180863420,0.33950251,157.54,157.5,0.73]
[1754180863616,8.84228585,157.53,157.5,0.06]
[1754180863828,8.84228585,157.54,157.5,0.73]
[1754180865130,1.04950251,157.56,157.5,0.06]
[1754180865428,8.84228585,157.55,157.5,0.73]
[1754180865727,0.33950251,157.54,157.5,0.73]
[1754180866835,9.18178836,157.54,157.5,0.73]
[1754180867300,0.33950251,157.54,157.51,9.51228585]
[1754180867500,16.78468397,157.58,157.52,0.67]
[1754180867501,0.33950251,157.58,157.52,0.67]
[1754180867702,0.33950251,157.58,157.52,9.51228585]
[1754180868042,0.33950251,157.58,157.52,0.67]
[1754180868207,1.04950251,157.58,157.52,9.51228585]
[1754180868528,8.84228585,157.55,157.5,8.90228585]
[1754180868736,0.33950251,157.54,157.51,0.67]
[1754180868901,8.84228585,157.55,157.51,0.67]
[1754180869103,0.33950251,157.54,157.51,0.67]
[1754180869736,0.33950251,157.54,157.5,0.06]
[1754180869933,8.84228585,157.53,157.5,0.06]
[1754180870415,8.84228585,157.54,157.51,0.67]
[1754180870617,0.71,157.58,157.52,0.67]
[1754180870829,0.33950251,157.59,157.54,8.84228585]
[1754180871147,9.18178836,157.59,157.55,0.67]
[1754180871306,0.33950251,157.59,157.56,0.67]
[1754180871506,9.18178836,157.59,157.55,0.67]
[1754180872611,0.33950251,157.59,157.56,0.67]
[1754180873046,17.52468397,157.62,157.57,9.51228585]
[1754180873047,0.33950251,157.61,157.57,9.51228585]
[1754180873332,0.33950251,157.61,157.58,0.67]
[1754180873526,0.33950251,157.61,157.57,8.84228585]
[1754180873835,0.33950251,157.61,157.58,0.67]
[1754180874521,0.71,157.6,157.53,0.67]
[1754180874711,8.84228585,157.57,157.53,0.67]
[1754180874917,8.84228585,157.58,157.54,0.67]
[1754180875101,0.33950251,157.57,157.54,0.67]
[1754180875805,9.18178836,157.57,157.52,8.84228585]
[1754180876005,8.84228585,157.56,157.52,0.67]
[1754180876238,9.89178836,157.57,157.52,0.67]
[1754180876436,9.18178836,157.57,157.52,9.51228585]
[1754180876747,9.18178836,157.57,157.5,0.06]
[1754180876748,8.84228585,157.55,157.5,0.73]
[1754180876970,9.18178836,157.55,157.5,9.57228585]
[1754180877252,9.89178836,157.55,157.5,0.73]
[1754180877409,8.84228585,157.55,157.51,0.67]
[1754180879064,8.84228585,157.55,157.5,8.90228585]
[1754180879235,8.84228585,157.54,157.5,0.06]
[1754180879560,8.84228585,157.54,157.5,0.73]
[1754180879950,8.84228585,157.53,157.5,0.06]
[1754180880458,9.18178836,157.52,157.5,0.06]
[1754180880672,26.0,157.57,157.51,9.51228585]
[1754180880673,0.33950251,157.57,157.51,9.51228585]
[1754180880873,0.03,157.59,157.52,0.67]
[1754180880874,9.18178836,157.56,157.52,0.67]
[1754180881061,8.84228585,157.53,157.5,0.06]
[1754180881233,8.84228585,157.56,157.51,8.84228585]
[1754180881565,8.84228585,157.54,157.5,0.06]
[1754180881863,0.71,157.55,157.5,0.06]
[1754180882027,9.18178836,157.54,157.5,0.06]
[1754180882228,9.89178836,157.54,157.5,0.06]
[1754180883137,8.84228585,157.52,157.5,0.06]
[1754180883338,0.71,157.56,157.5,9.59228585]
[1754180883651,0.33950251,157.55,157.51,9.53228585]
[1754180883852,9.18178836,157.55,157.51,0.69]
[1754180884031,8.84228585,157.56,157.51,8.84228585]
[1754180884365,8.84228585,157.56,157.52,0.69]
[1754180884366,0.33950251,157.55,157.52,0.69]
[1754180884661,8.84228585,157.56,157.52,0.69]
[1754180885157,1.04950251,157.58,157.5,0.06]
[1754180885158,0.33950251,157.58,157.54,8.84228585]
[1754180885460,8.84228585,157.57,157.52,8.84228585]
[1754180885663,8.84228585,157.55,157.51,0.69]
[1754180886038,8.84228585,157.58,157.53,8.84228585]
[1754180886372,0.33950251,157.57,157.54,0.69]
[1754180886947,0.03,157.59,157.56,8.84228585]
[1754180887153,0.03,157.59,157.57,9.53228585]
[1754180887340,0.03,157.59,157.58,0.69]
[1754180889178,0.03,157.59,157.56,8.84228585]
[1754180889547,0.03,157.59,157.51,26.0]
[1754180889740,8.87228585,157.59,157.54,8.84228585]
[1754180889966,0.74,157.59,157.54,9.53228585]
[1754180890167,0.74,157.59,157.5,47.82]
[1754180890168,0.03,157.59,157.55,9.53228585]
[1754180890471,0.36950251,157.59,157.55,9.53228585]
[1754180890768,0.36950251,157.59,157.53,0.69]
[1754180890769,9.92178836,157.59,157.53,0.69]
[1754180890939,9.92178836,157.59,157.53,9.53228585]
[1754180891547,8.84228585,157.58,157.53,8.84228585]
[1754180891755,8.84228585,157.56,157.51,0.69]
[1754180892055,0.33950251,157.55,157.51,0.69]
[1754180892244,8.84228585,157.55,157.51,0.69]
[1754180892635,0.33950251,157.54,157.51,0.69]
[1754180892834,8.84228585,157.55,157.51,0.69]
[1754180893242,0.33950251,157.54,157.51,0.69]
[1754180893745,1.04950251,157.57,157.51,0.69]
[1754180894070,8.84228585,157.55,157.51,0.69]
[1754180894278,0.33950251,157.54,157.51,0.69]
[1754180894440,0.33950251,157.54,157.5,0.06]
[1754180894441,9.55228585,157.53,157.5,0.06]
[1754180895645,8.84228585,157.53,157.5,0.06]
[1754180895959,0.71,157.55,157.5,0.06]
[1754180895960,8.84228585,157.54,157.5,0.06]
[1754180896160,0.33950251,157.53,157.5,0.06]
[1754180897351,8.84228585,157.57,157.52,8.84228585]
[1754180897551,9.18178836,157.58,157.53,9.53228585]
[1754180897775,0.33950251,157.58,157.54,9.53228585]
[1754180897960,9.21178836,157.59,157.55,0.69]
[1754180898269,0.03,157.59,157.56,0.69]
[1754180898475,0.36950251,157.59,157.56,0.69]
[1754180898653,9.21178836,157.59,157.54,8.84228585]
[1754180898859,9.21178836,157.59,157.54,9.53228585]
[1754180899371,0.03,157.59,157.56,8.84228585]
[1754180899574,0.03,157.61,157.58,8.84228585]
[1754180899776,0.03,157.61,157.6,8.84228585]
[1754180899996,0.03,157.64,157.61,8.84228585]
[1754180900281,0.03,157.64,157.63,8.84228585]
[1754180900745,0.03,157.64,157.63,9.53228585]
[1754180907561,0.03,157.64,157.63,8.84228585]
[1754180908162,0.03,157.64,157.63,9.53228585]
[1754180910684,0.03,157.64,157.63,18.3745717]
[1754180910987,0.03,157.66,157.63,66.7489687]
[1754180911187,0.03,157.66,157.65,34.84228585]
[1754180911686,0.03,157.66,157.65,35.54228585]
[1754180913275,8.84228585,157.79,157.65,36.17660237]
[1754180913453,8.87228585,157.8,157.75,8.84228585]
[1754180913656,0.03,157.8,157.75,8.84228585]
[1754180914050,0.03,157.8,157.76,8.84228585]
[1754180914301,0.03,157.8,157.75,0.7]
[1754180914455,0.03,157.8,157.76,8.84228585]
[1754180914659,0.03,157.8,157.77,8.84228585]
[1754180915157,0.03,157.8,157.76,8.84228585]
[1754180915353,8.84228585,157.79,157.73,8.84228585]
[1754180915555,0.03,157.8,157.74,8.84228585]
[1754180916181,0.03,157.8,157.74,9.54228585]
[1754180916378,0.03,157.8,157.73,8.84228585]
[1754180916687,8.84228585,157.74,157.68,0.7]
[1754180917006,8.84228585,157.73,157.68,0.7]
[1754180919113,16.81468397,157.78,157.68,9.54228585]
[1754180919408,8.84228585,157.74,157.69,0.7]
[1754180920274,8.84228585,157.73,157.68,8.84228585]
[1754180920464,0.03,157.78,157.7,8.84228585]
[1754180920670,8.84228585,157.77,157.72,8.84228585]
[1754180920899,8.87228585,157.78,157.73,9.54228585]
[1754180921389,0.03,157.78,157.74,9.54228585]
[1754180921859,8.87228585,157.78,157.72,8.84228585]
[1754180922061,8.84228585,157.75,157.7,0.7]
[1754180922291,8.84228585,157.75,157.7,8.84228585]
[1754180922490,8.84228585,157.75,157.71,0.7]
[1754180922693,8.84228585,157.75,157.7,8.84228585]
[1754180923193,8.84228585,157.75,157.7,9.54228585]
[1754180923601,8.84228585,157.74,157.69,8.842286]
[1754180923911,8.84228585,157.74,157.69,0.7]
[1754180924229,8.84228585,157.75,157.7,8.84228585]
[1754180924727,0.03,157.78,157.69,9.54228585]
[1754180924728,8.84228585,157.74,157.69,9.54228585]
[1754180925383,0.03,157.78,157.7,9.54228585]
[1754180925604,8.84228585,157.75,157.7,9.54228585]
[1754180925984,0.03,157.78,157.7,9.54228585]
[1754180926406,8.84228585,157.75,157.7,9.54228585]
[1754180927045,8.84228585,157.73,157.68,18.38457185]
[1754180927180,8.84228585,157.71,157.66,9.54228585]
[1754180927375,8.84228585,157.71,157.66,17.68457185]
[1754180927615,8.84228585,157.71,157.67,0.7]
[1754180928984,0.28,157.77,157.68,9.54228585]
[1754180929299,8.84228585,157.73,157.69,0.7]
[1754180931685,8.84228585,157.72,157.69,0.7]
[1754180932106,0.25,157.75,157.69,0.7]
[1754180932309,0.25,157.75,157.66,8.84228585]
[1754180932310,8.84228585,157.71,157.66,8.84228585]
[1754180932705,8.84228585,157.71,157.67,0.7]
[1754180932900,0.25,157.73,157.67,0.7]
[1754180933098,8.84228585,157.71,157.67,0.7]
[1754180933300,8.84228585,157.71,157.66,8.84228585]
[1754180933500,8.84228585,157.71,157.68,0.7]
[1754180934098,8.84228585,157.72,157.68,0.7]
[1754180935806,8.84228585,157.71,157.68,0.7]
[1754180936007,0.25,157.71,157.65,9.60228585]
[1754180936335,8.84228585,157.7,157.65,9.60228585]
[1754180936690,8.84228585,157.69,157.66,0.7]
[1754180937647,0.25,157.71,157.66,0.7]
[1754180938154,8.84228585,157.69,157.66,0.7]
[1754180938291,8.84228585,157.68,157.65,0.06]
[1754180938491,8.84228585,157.66,157.65,0.06]
[1754180939429,9.09228585,157.66,157.65,0.06]
[1754180939850,25.87696982,157.66,157.65,0.06]
[1754180940149,9.09228585,157.66,157.65,0.06]
[1754180940429,26.0,157.67,157.65,0.06]
[1754180940430,8.84228585,157.67,157.65,0.06]
[1754180940636,8.84228585,157.66,157.65,0.06]
[1754180940933,8.84228585,157.67,157.65,0.76]
[1754180941132,8.84228585,157.66,157.65,0.06]
[1754180941501,8.84228585,157.67,157.65,0.73]
[1754180941701,0.25,157.67,157.65,0.06]
[1754180942104,9.09228585,157.66,157.65,0.06]
[1754180944047,25.87696982,157.66,157.65,0.06]
[1754180944350,26.0,157.64,157.63,0.06]
[1754180944568,34.84228585,157.64,157.63,0.06]
[1754180944909,35.09228585,157.64,157.63,0.06]
[1754180946409,26.0,157.64,157.63,0.06]
[1754180946726,8.84228585,157.67,157.63,0.73]
[1754180946927,8.84228585,157.68,157.63,9.57228585]
[1754180947133,42.78468397,157.71,157.64,0.67]
[1754180947340,8.84228585,157.67,157.64,0.67]
[1754180948062,8.84228585,157.67,157.63,0.06]
[1754180948063,8.84228585,157.65,157.63,0.06]
[1754180948242,8.84228585,157.64,157.63,0.06]
[1754180949733,9.09228585,157.64,157.63,0.06]
[1754180950277,8.84228585,157.64,157.63,0.06]
[1754180952781,42.78468397,157.68,157.63,0.06]
[1754180953077,8.84228585,157.65,157.63,0.73]
[1754180953561,8.84228585,157.64,157.63,0.06]
[1754180954480,0.25,157.67,157.63,0.06]
[1754180954776,8.84228585,157.64,157.63,0.06]
[1754180954971,8.84228585,157.64,157.63,0.73]
[1754180955272,8.84228585,157.64,157.63,0.06]
[1754180955634,25.87696982,157.64,157.63,0.06]
[1754180956262,25.62696982,157.64,157.63,0.06]
[1754180956660,51.62696982,157.64,157.63,0.06]
[1754180957701,43.03468397,157.64,157.63,0.06]
[1754180957907,51.87696982,157.64,157.63,0.06]
[1754180958066,34.84228585,157.64,157.63,0.06]
[1754180959473,8.84228585,157.64,157.63,0.73]
[1754180959871,34.84228585,157.65,157.63,0.73]
[1754180960114,47.68,157.68,157.63,0.73]
[1754180960115,8.84228585,157.66,157.63,0.73]
[1754180960405,8.84228585,157.66,157.63,0.06]
[1754180960602,8.84228585,157.66,157.64,0.67]
[1754180960807,47.68,157.68,157.63,0.06]
[1754180961104,8.84228585,157.67,157.65,0.67]
[1754180961473,8.84228585,157.66,157.65,0.67]
[1754180961800,8.84228585,157.67,157.65,0.67]
[1754180962767,8.84228585,157.66,157.65,0.67]
[1754180964402,9.09228585,157.66,157.63,0.06]
[1754180964574,8.84228585,157.66,157.63,0.06]
[1754180964792,8.84228585,157.66,157.64,0.67]
[1754180964996,8.84228585,157.66,157.63,0.06]
[1754180965334,8.84228585,157.66,157.65,0.67]
[1754180965497,8.84228585,157.66,157.63,0.06]
[1754180965824,8.84228585,157.64,157.63,0.06]
[1754180969507,25.87696982,157.64,157.63,0.06]
[1754180970447,17.03468397,157.64,157.63,0.06]
[1754180970734,25.62696982,157.64,157.63,0.06]
[1754180971224,25.87696982,157.64,157.63,0.06]
[1754180971937,25.62696982,157.64,157.63,0.06]
[1754180972401,25.87696982,157.64,157.63,0.06]
[1754180972923,22.48357548,157.64,157.63,0.06]
[1754180973612,22.23357548,157.62,157.61,0.06]
[1754180973814,90.44468397,157.62,157.61,0.06]
[1754180974003,95.89357548,157.62,157.61,0.06]
[1754180975212,90.44468397,157.62,157.61,0.06]
[1754180975426,95.89357548,157.62,157.61,0.06]
[1754180976902,5.44889151,157.64,157.61,0.76]
[1754180977114,5.44889151,157.64,157.62,0.7]
[1754180977327,5.44889151,157.64,157.63,0.7]
[1754180977524,4.18803666,157.66,157.63,0.7]
[1754180977727,47.69,157.67,157.64,0.7]
[1754180977928,5.44889151,157.65,157.62,0.7]
[1754180978133,5.44889151,157.64,157.63,0.7]
[1754180979423,5.44889151,157.66,157.63,0.7]
[1754180979630,73.69,157.67,157.63,0.7]
[1754180979631,53.13889151,157.67,157.63,0.7]
[1754180979846,0.03,157.67,157.63,0.7]
[1754180980365,5.47889151,157.67,157.63,0.7]
[1754180980544,5.44889151,157.66,157.64,0.7]
[1754180980746,5.44889151,157.66,157.65,0.7]
[1754180981058,0.03,157.67,157.65,0.7]
[1754180981361,5.47889151,157.67,157.65,0.7]
[1754180981957,0.03,157.67,157.65,0.7]
[1754180982266,5.47889151,157.67,157.62,5.44889151]
[1754180982469,5.47889151,157.67,157.66,0.7]
[1754180982470,0.03,157.67,157.66,0.7]
[1754180983482,5.47889151,157.67,157.62,5.44889151]
[1754180983662,5.47889151,157.67,157.64,0.7]
[1754180984048,5.44889151,157.65,157.62,0.7]
[1754180984245,5.44889151,157.64,157.62,0.7]
[1754180984658,5.44889151,157.64,157.61,0.06]
[1754180984860,5.44889151,157.64,157.61,0.76]
[1754180985046,5.44889151,157.62,157.61,0.76]
[1754180985451,5.44889151,157.63,157.61,0.76]
[1754180985977,47.64,157.66,157.62,0.7]
[1754180986136,5.47889151,157.67,157.62,6.14889151]
[1754180986462,5.47889151,157.67,157.63,0.7]
[1754180986661,0.03,157.67,157.63,6.14889151]
[1754180986844,0.03,157.67,157.64,0.7]
[1754180987288,0.03,157.67,157.65,0.7]
[1754180987787,0.03,157.67,157.66,0.7]
[1754180988486,5.47889151,157.67,157.66,0.7]
[1754180989384,0.03,157.67,157.66,0.7]
[1754180996293,5.72889151,157.67,157.61,0.76]
[1754180996589,5.44889151,157.63,157.61,0.76]
[1754180998380,5.44889151,157.62,157.61,0.06]
[1754181000197,4.1951242,157.66,157.61,0.06]
[1754181000399,5.44889151,157.63,157.61,0.76]
[1754181000576,5.44889151,157.63,157.61,0.06]
[1754181000769,5.44889151,157.62,157.61,0.06]
[1754181001586,5.44889151,157.63,157.61,0.76]
[1754181001906,5.44889151,157.63,157.61,0.06]
[1754181002696,4.19289156,157.66,157.61,0.06]
[1754181002889,5.69889151,157.62,157.61,0.06]
[1754181003089,70.10357548,157.62,157.61,0.06]
[1754181003296,53.31889151,157.62,157.61,0.06]
[1754181003875,47.62,157.62,157.61,0.06]
[1754181004089,53.06889151,157.62,157.61,0.06]
[1754181004291,5.44889151,157.62,157.61,0.06]
[1754181004677,5.44889151,157.63,157.61,0.76]
[1754181004881,5.44889151,157.64,157.61,0.76]
[1754181005083,5.44889151,157.63,157.61,0.76]
[1754181005285,5.69889151,157.62,157.61,0.06]
[1754181005572,22.48357548,157.62,157.61,0.06]
[1754181005869,0.25,157.65,157.61,0.06]
[1754181006178,31.44889151,157.62,157.61,0.06]
[1754181007617,5.44889151,157.62,157.61,0.06]